fUST/lending_fUST_20240807
["ID","MTS","AMOUNT","RATE_DAILY","PERIOD"]
[334397583,1723029079796,-531.95,0.00034246,14]
[334397584,1723029079806,-500.0,0.00034246,14]
[334397585,1723029079815,-738.14,0.00034246,14]
[334397586,1723029079825,-500.0,0.00034246,14]
[334397587,1723029079835,-500.0,0.00034246,14]
[334397588,1723029079846,-500.0,0.00034246,14]
[334397589,1723029079856,-500.0,0.00034246,14]
[334397590,1723029079865,-500.0,0.00034246,14]
[334397591,1723029079875,-500.0,0.00034246,14]
[334397592,1723029079886,-500.0,0.00034246,14]
[334397593,1723029079896,-561.59,0.00034246,14]
[334397594,1723029079905,-518.35698529,0.00034246,14]
[334397595,1723029079914,-500.0,0.00034246,14]
[334397596,1723029079925,-450.52471388,0.00034246,14]
[334397597,1723029079935,-526.38,0.00034246,14]
[334397598,1723029079944,-500.0,0.00034246,14]
[334397599,1723029079954,-655.78,0.00034246,14]
[334397600,1723029079965,-500.0,0.00034246,14]
[334397601,1723029079975,-997.18,0.00034246,14]
[334397602,1723029079984,-1854.37,0.00034246,14]
[334397603,1723029079996,-500.0,0.00034246,14]
[334397604,1723029080008,-200.0,0.00034246,7]
[334397605,1723029080018,-1754.86,0.00034246,14]
[334397606,1723029080028,-500.0,0.00034246,14]
[334397607,1723029080039,-500.0,0.00034246,14]
[334397608,1723029080051,-637.98,0.00034246,14]
[334397609,1723029080060,-500.0,0.00034246,14]
[334397610,1723029080071,-2280.75,0.00034246,14]
[334397611,1723029080083,-524.01,0.00034246,14]
[334397612,1723029080093,-500.0,0.00034246,14]
[334397613,1723029080107,-500.0,0.00034246,14]
[334397614,1723029080118,-500.0,0.00034246,14]
[334397615,1723029080130,-500.0,0.00034246,14]
[334397616,1723029080140,-528.8,0.00034246,14]
[334397617,1723029080151,-500.0,0.00034246,14]
[334397618,1723029080162,-1498.25,0.00034246,14]
[334397619,1723029080172,-693.96,0.00034246,14]
[334397620,1723029080182,-500.0,0.00034246,14]
[334397621,1723029080321,-500.0,0.00034246,14]
[334397622,1723029080332,-627.54,0.00034246,14]
[334397623,1723029080345,-500.0,0.00034246,14]
[334397624,1723029080355,-3342.3,0.00034246,14]
[334397625,1723029080366,-531.99,0.00034246,14]
[334397626,1723029080377,-500.0,0.00034246,14]
[334397627,1723029080387,-1236.8,0.00034246,14]
[334397628,1723029080396,-500.0,0.00034246,14]
[334397629,1723029080406,-728.37,0.00034246,14]
[334397630,1723029080415,-1161.27,0.00034246,14]
[334397631,1723029080424,-500.0,0.00034246,14]
[334397632,1723029080434,-3031.19,0.00034246,14]
[334397633,1723029080443,-938.86,0.00034246,14]
[334397634,1723029080453,-500.0,0.00034246,14]
[334397635,1723029080462,-500.0,0.00034246,14]
[334397636,1723029080472,-500.0,0.00034246,14]
[334397637,1723029080481,-1919.23,0.00034246,14]
[334397638,1723029080491,-1225.39,0.00034246,14]
[334397639,1723029080500,-884.22,0.00034246,14]
[334397640,1723029080509,-1075.22,0.00034246,14]
[334397641,1723029080519,-500.0,0.00034246,14]
[334397642,1723029080532,-500.0,0.00034246,14]
[334397643,1723029080541,-799.55,0.00034246,14]
[334397644,1723029080551,-665.15,0.00034246,14]
[334397645,1723029080561,-578.83,0.00034246,14]
[334397646,1723029080572,-500.0,0.00034246,14]
[334397647,1723029080584,-500.0,0.00034246,14]
[334397648,1723029080596,-500.0,0.00034246,14]
[334397649,1723029080605,-1407.14,0.00034246,14]
[334397650,1723029080614,-538.06,0.00034246,14]
[334397651,1723029080623,-558.13259714,0.00034246,14]
[334397652,1723029080633,-316.65044623,0.00034246,14]
[334397653,1723029080643,-500.0,0.00034246,14]
[334397654,1723029080653,-1237.71,0.00034246,14]
[334397655,1723029080663,-3398.02,0.00034246,14]
[334397656,1723029080674,-2584.23,0.00034246,14]
[334397657,1723029080683,-798.6,0.00034246,14]
[334397658,1723029080692,-604.27,0.00034246,14]
[334397659,1723029080702,-500.0,0.00034246,14]
[334397660,1723029080711,-500.0,0.00034246,14]
[334397661,1723029080720,-500.0,0.00034246,14]
[334397662,1723029080729,-500.0,0.00034246,2]
[334397663,1723029080739,-500.0,0.00034246,14]
[334397664,1723029080748,-500.0,0.00034246,14]
[334397665,1723029080757,-500.0,0.00034246,14]
[334397666,1723029080767,-1456.08,0.00034246,14]
[334397667,1723029080776,-968.66,0.00034246,14]
[334397668,1723029080785,-500.0,0.00034246,14]
[334397669,1723029080794,-1104.57,0.00034246,14]
[334397670,1723029080804,-785.13,0.00034246,14]
[334397671,1723029080813,-1000.35,0.00034246,14]
[334397672,1723029080823,-678.62,0.00034246,14]
[334397673,1723029080835,-2102.23,0.00034246,14]
[334397674,1723029080848,-786.56,0.00034246,14]
[334397675,1723029080859,-1724.83,0.00034246,14]
[334397676,1723029080869,-1026.47,0.00034246,14]
[334397677,1723029080880,-2410.79,0.00034246,14]
[334397678,1723029080889,-500.0,0.00034246,14]
[334397679,1723029080901,-1027.92,0.00034246,14]
[334397680,1723029080910,-572.28,0.00034246,14]
[334397681,1723029080920,-500.0,0.00034246,14]
[334397682,1723029080930,-827.4,0.00034246,14]
[334397683,1723029080939,-500.0,0.00034246,14]
[334397684,1723029080952,-500.0,0.00034246,14]
[334397685,1723029080963,-500.0,0.00034246,14]
[334397686,1723029080976,-518.55336667,0.00034246,14]
[334397687,1723029080985,-1638.94,0.00034246,14]
[334397688,1723029081001,-500.0,0.00034246,14]
[334397689,1723029081013,-2976.45,0.00034246,14]
[334397690,1723029081024,-500.0,0.00034246,14]
[334397691,1723029081035,-728.06,0.00034246,14]
[334397692,1723029081047,-500.0,0.00034246,14]
[334397693,1723029081058,-1275.04,0.00034246,14]
[334397694,1723029081069,-500.0,0.00034246,14]
[334397695,1723029081081,-1187.93,0.00034246,14]
[334397696,1723029081092,-645.93,0.00034246,14]
[334397697,1723029081103,-500.0,0.00034246,14]
[334397698,1723029081114,-1020.1,0.00034246,14]
[334397699,1723029081123,-500.0,0.00034246,14]
[334397700,1723029081135,-500.0,0.00034246,14]
[334397701,1723029081147,-581.74,0.00034246,14]
[334397702,1723029081158,-500.0,0.00034246,14]
[334397703,1723029081167,-720.42,0.00034246,14]
[334397704,1723029081177,-500.0,0.00034246,14]
[334397705,1723029081187,-923.4,0.00034246,14]
[334397706,1723029081196,-501.14409492,0.00034246,14]
[334397707,1723029081206,-500.0,0.00034246,14]
[334397708,1723029081216,-548.72,0.00034246,14]
[334397709,1723029081227,-534.66,0.00034246,14]
[334397710,1723029081237,-671.94,0.00034246,14]
[334397711,1723029081247,-2664.41,0.00034246,14]
[334397712,1723029081259,-500.0,0.00034246,14]
[334397713,1723029081271,-1512.23,0.00034246,14]
[334397714,1723029081281,-1144.37,0.00034246,14]
[334397715,1723029081291,-500.0,0.00034246,14]
[334397716,1723029081301,-518.05,0.00034246,14]
[334397717,1723029081312,-1021.34,0.00034246,14]
[334397718,1723029081323,-500.0,0.00034246,14]
[334397719,1723029081333,-2148.85,0.00034246,14]
[334397720,1723029081346,-500.0,0.00034246,14]
[334397721,1723029081355,-500.0,0.00034246,14]
[334397722,1723029081365,-500.0,0.00034246,14]
[334397723,1723029081375,-1093.31,0.00034246,14]
[334397724,1723029081387,-2807.44,0.00034246,14]
[334397725,1723029081398,-500.0,0.00034246,14]
[334397726,1723029081408,-500.0,0.00034246,14]
[334397727,1723029081420,-500.0,0.00034246,14]
[334397728,1723029081432,-500.0,0.00034246,14]
[334397729,1723029081442,-500.0,0.00034246,14]
[334397730,1723029081453,-647.5,0.00034246,14]
[334397731,1723029081463,-972.5,0.00034246,14]
[334397732,1723029081474,-2896.75,0.00034246,14]
[334397733,1723029081484,-836.81,0.00034246,14]
[334397734,1723029081495,-621.33,0.00034246,14]
[334397735,1723029081507,-500.0,0.00034246,14]
[334397736,1723029081518,-500.0,0.00034246,14]
[334397737,1723029081529,-877.3,0.00034246,14]
[334397738,1723029081540,-500.0,0.00034246,14]
[334397739,1723029081551,-646.55,0.00034246,14]
[334397740,1723029081561,-519.26,0.00034246,14]
[334397741,1723029081572,-811.6,0.00034246,14]
[334397742,1723029081582,-388.95148596,0.00034246,14]
[334397743,1723029081593,-3787.31,0.00034246,14]
[334397744,1723029081603,-676.38,0.00034246,14]
[334397745,1723029081615,-500.0,0.00034246,14]
[334397746,1723029081626,-1713.3,0.00034246,14]
[334397747,1723029081636,-500.0,0.00034246,14]
[334397748,1723029081646,-710.82,0.00034246,14]
[334397749,1723029081656,-3403.09,0.00034246,14]
[334397750,1723029081665,-500.0,0.00034246,14]
[334397751,1723029081675,-8008.66,0.00034246,14]
[334397752,1723029081686,-1695.73,0.00034246,14]
[334397753,1723029081696,-500.0,0.00034246,14]
[334397754,1723029081705,-2652.65,0.00034246,14]
[334397755,1723029081715,-500.0,0.00034246,14]
[334397756,1723029081724,-676.41,0.00034246,14]
[334397757,1723029081733,-4726.18,0.00034246,14]
[334397758,1723029081745,-631.77,0.00034246,14]
[334397759,1723029081758,-765.56,0.00034246,14]
[334397760,1723029081768,-524.76,0.00034246,14]
[334397761,1723029081778,-500.0,0.00034246,14]
[334397762,1723029081789,-500.0,0.00034246,14]
[334397763,1723029081800,-596.92,0.00034246,14]
[334397764,1723029081810,-2772.04,0.00034246,14]
[334397765,1723029081822,-872.47,0.00034246,14]
[334397766,1723029081832,-500.0,0.00034246,14]
[334397767,1723029081843,-500.0,0.00034246,14]
[334397768,1723029081857,-2850.24,0.00034246,14]
[334397769,1723029081866,-2368.38,0.00034246,14]
[334397770,1723029081878,-918.69,0.00034246,14]
[334397771,1723029081889,-1182.98,0.00034246,14]
[334397772,1723029081899,-500.0,0.00034246,14]
[334397773,1723029081909,-787.24,0.00034246,14]
[334397774,1723029081918,-500.0,0.00034246,14]
[334397775,1723029081930,-500.0,0.00034246,14]
[334397776,1723029081942,-500.0,0.00034246,14]
[334397777,1723029081953,-748.79,0.00034246,14]
[334397778,1723029081965,-1732.44,0.00034246,14]
[334397779,1723029081977,-1373.61,0.00034246,14]
[334397780,1723029081988,-500.0,0.00034246,14]
[334397781,1723029082000,-1008.03,0.00034246,14]
[334397782,1723029082010,-705.51,0.00034246,14]
[334397783,1723029082020,-500.0,0.00034246,14]
[334397784,1723029082031,-5624.94,0.00034246,14]
[334397785,1723029082044,-4673.31,0.00034246,14]
[334397786,1723029082053,-2102.82,0.00034246,14]
[334397787,1723029082062,-683.38,0.00034246,14]
[334397788,1723029082072,-500.0,0.00034246,14]
[334397789,1723029082081,-500.0,0.00034246,14]
[334397790,1723029082090,-500.0,0.00034246,14]
[334397791,1723029082101,-500.0,0.00034246,14]
[334397792,1723029082110,-1201.25,0.00034246,14]
[334397793,1723029082120,-5296.6,0.00034246,14]
[334397794,1723029082130,-500.0,0.00034246,14]
[334397795,1723029082142,-500.0,0.00034246,14]
[334397796,1723029082151,-754.45,0.00034246,14]
[334397797,1723029082161,-6120.77,0.00034246,14]
[334397798,1723029082171,-189.9310127,0.00034246,14]
[334397799,1723029082181,-4115.44,0.00034246,14]
[334397800,1723029082191,-500.0,0.00034246,14]
[334397801,1723029082202,-2356.09,0.00034246,14]
[334397802,1723029082214,-1016.46,0.00034246,14]
[334397803,1723029082224,-1373.79,0.00034246,14]
[334397804,1723029082236,-500.0,0.00034246,14]
[334397805,1723029082246,-27586.24,0.00034246,14]
[334397806,1723029082257,-641.2,0.00034246,14]
[334397807,1723029082267,-551.11,0.00034246,14]
[334397808,1723029082278,-2059.66,0.00034246,14]
[334397809,1723029082289,-884.77,0.00034246,14]
[334397810,1723029082299,-7553.97,0.00034246,14]
[334397811,1723029082311,-1858.24,0.00034246,14]
[334397812,1723029082321,-6001.15,0.00034246,14]
[334397813,1723029082333,-1904.11,0.00034246,14]
[334397814,1723029082344,-3288.86,0.00034246,14]
[334397815,1723029082354,-577.95,0.00034246,14]
[334397816,1723029082364,-1446.23,0.00034246,14]
[334397817,1723029082376,-4804.12,0.00034246,14]
[334397818,1723029082387,-509.19,0.00034246,14]
[334397819,1723029082398,-873.14,0.00034246,14]
[334397820,1723029082409,-3091.7,0.00034246,14]
[334397821,1723029082419,-743.63,0.00034246,14]
[334397822,1723029082429,-1370.13,0.00034246,14]
[334397823,1723029082441,-18095.21,0.00034246,14]
[334397824,1723029082451,-500.0,0.00034246,14]
[334397825,1723029082461,-1609.93,0.00034246,14]
[334397826,1723029082471,-2388.37,0.00034246,14]
[334397827,1723029082482,-803.5,0.00034246,14]
[334397828,1723029082494,-4013.41,0.00034246,14]
[334397829,1723029082504,-602.9,0.00034246,14]
[334397830,1723029082517,-629.6,0.00034246,14]
[334397831,1723029082526,-2364.63,0.00034246,14]
[334397832,1723029082537,-1184.06,0.00034246,14]
[334397833,1723029082550,-500.0,0.00034246,14]
[334397834,1723029082561,-1150.86,0.00034246,14]
[334397835,1723029082571,-602.76,0.00034246,14]
[334397836,1723029082580,-20279.89,0.00034246,14]
[334397837,1723029082591,-500.0,0.00034246,14]
[334397838,1723029082602,-1372.29,0.00034246,14]
[334397839,1723029082613,-500.0,0.00034246,14]
[334397840,1723029082625,-11638.4,0.00034246,14]
[334397841,1723029082636,-500.0,0.00034246,14]
[334397842,1723029082647,-500.0,0.00034246,14]
[334397843,1723029082657,-500.0,0.00034246,14]
[334397844,1723029082667,-1433.62,0.00034246,14]
[334397845,1723029082677,-500.0,0.00034246,14]
[334397846,1723029082686,-761.0,0.00034246,14]
[334397847,1723029082696,-500.0,0.00034246,14]
[334397848,1723029082705,-1750.38,0.00034246,14]
[334397849,1723029082714,-512.68,0.00034246,14]
[334397850,1723029082724,-11428.84,0.00034246,14]
[334397851,1723029082733,-746.77,0.00034246,14]
[334397852,1723029082743,-1433.26,0.00034246,14]
[334397853,1723029082753,-2496.12,0.00034246,14]
[334397854,1723029082762,-2975.06,0.00034246,14]
[334397855,1723029082771,-2356.96,0.00034246,14]
[334397856,1723029082780,-3825.94,0.00034246,14]
[334397857,1723029082789,-1460.03,0.00034246,14]
[334397858,1723029082798,-500.0,0.00034246,14]
[334397859,1723029082807,-1424.73,0.00034246,14]
[334397860,1723029082817,-10865.29,0.00034246,14]
[334397861,1723029082827,-2785.33,0.00034246,14]
[334397862,1723029082837,-500.0,0.00034246,14]
[334397863,1723029082850,-500.0,0.00034246,14]
[334397864,1723029082860,-536.47,0.00034246,14]
[334397865,1723029082871,-973.08,0.00034246,14]
[334397866,1723029082882,-500.0,0.00034246,14]
[334397867,1723029082893,-795.32,0.00034246,14]
[334397868,1723029082903,-6834.28,0.00034246,14]
[334397869,1723029082912,-1637.95,0.00034246,14]
[334397870,1723029082923,-500.0,0.00034246,14]
[334397871,1723029082936,-500.0,0.00034246,14]
[334397872,1723029082947,-1190.28,0.00034246,14]
[334397873,1723029082958,-5590.89,0.00034246,14]
[334397874,1723029082969,-502.77,0.00034246,14]
[334397875,1723029082979,-2520.26,0.00034246,14]
[334397876,1723029082992,-1612.65,0.00034246,14]
[334397877,1723029083004,-1790.94,0.00034246,14]
[334397878,1723029083017,-500.0,0.00034246,14]
[334397879,1723029083027,-500.0,0.00034246,14]
[334397880,1723029083036,-1565.92,0.00034246,14]
[334397881,1723029083048,-539.16230326,0.00034246,14]
[334397882,1723029083183,-739.25,0.00034246,14]
[334397883,1723029083194,-500.0,0.00034246,14]
[334397884,1723029083204,-728.33,0.00034246,14]
[334397885,1723029083213,-709.69,0.00034246,14]
[334397886,1723029083222,-656.7,0.00034246,14]
[334397887,1723029083232,-2157.08,0.00034246,14]
[334397888,1723029083242,-500.0,0.00034246,14]
[334397889,1723029083251,-2547.19,0.00034246,14]
[334397890,1723029083260,-1757.34,0.00034246,14]
[334397891,1723029083270,-1214.45,0.00034246,14]
[334397892,1723029083279,-1138.49,0.00034246,14]
[334397893,1723029083289,-943.14,0.00034246,14]
[334397894,1723029083298,-814.59,0.00034246,14]
[334397895,1723029083308,-500.0,0.00034246,14]
[334397896,1723029083317,-1713.75,0.00034246,14]
[334397897,1723029083326,-849.27,0.00034246,14]
[334397898,1723029083335,-500.0,0.00034246,14]
[334397899,1723029083345,-817.517819,0.0003429,2]
[334397900,1723029083355,-769.01714,0.0003429,2]
[334397901,1723029083364,-176.508552,0.0003429,2]
[334397902,1723029083374,-719.23681,0.0003429,2]
[334397903,1723029083383,-756.969634,0.0003429,2]
[334397904,1723029083392,-159.341654,0.00034431,2]
[334397905,1723029083401,-271.4386735,0.00034441,2]
[334397906,1723029083410,-271.4386735,0.00034441,2]
[334397907,1723029083419,-271.4386735,0.00034441,2]
[334397908,1723029083428,-271.4386735,0.00034441,2]
[334397909,1723029083437,-271.4386735,0.00034441,2]
[334397910,1723029083447,-271.4386735,0.00034441,2]
[334397911,1723029083457,-271.4386735,0.00034441,2]
[334397912,1723029083465,-271.4386735,0.00034441,2]
[334397913,1723029083475,-271.4386735,0.00034441,2]
[334397914,1723029083485,-271.4386735,0.00034441,2]
[334397915,1723029083494,-271.4386735,0.00034441,2]
[334397916,1723029083503,-271.4386735,0.00034441,2]
[334397917,1723029083512,-271.4386735,0.00034441,2]
[334397918,1723029083524,-271.4386735,0.00034441,2]
[334397919,1723029083533,-271.4386735,0.00034441,2]
[334397920,1723029083542,-271.4386735,0.00034441,2]
[334397921,1723029083551,-263.1641076,0.00034441,2]
[334397922,1723029083562,-271.4386735,0.00034441,2]
[334397923,1723029083572,-271.4386735,0.00034441,2]
[334397924,1723029083581,-271.4386735,0.00034441,2]
[334397925,1723029083593,-271.4386735,0.00034441,2]
[334397926,1723029083602,-2000.0,0.00034518,14]
[334397927,1723029083612,-1053.34,0.0003452,14]
[334397928,1723029083621,-525.21051243,0.0003452,14]
[334397929,1723029083630,-1009.34,0.0003452,14]
[334397930,1723029083640,-2387.52,0.0003452,14]
[334397931,1723029083648,-500.0,0.0003452,14]
[334397932,1723029083658,-500.0,0.0003452,14]
[334397933,1723029083667,-540.78,0.0003452,14]
[334397934,1723029083676,-558.5,0.0003452,14]
[334397935,1723029083685,-2183.56,0.0003452,14]
[334397936,1723029083695,-635.93,0.0003452,14]
[334397937,1723029083704,-614.31,0.0003452,14]
[334397938,1723029083713,-500.0,0.0003452,14]
[334397939,1723029083723,-1090.48,0.0003452,14]
[334397940,1723029083732,-500.0,0.0003452,14]
[334397941,1723029083742,-983.41,0.0003452,14]
[334397942,1723029083751,-409.23037297,0.0003452,14]
[334397943,1723029083760,-500.0,0.0003452,14]
[334397944,1723029083769,-1237.41,0.0003452,14]
[334397945,1723029083778,-500.0,0.0003452,14]
[334397946,1723029083787,-901.85,0.0003452,14]
[334397947,1723029083796,-500.0,0.0003452,14]
[334397948,1723029083805,-500.0,0.0003452,14]
[334397949,1723029083814,-705.74,0.0003452,14]
[334397950,1723029083824,-867.95,0.0003452,14]
[334397951,1723029083833,-890.32,0.0003452,14]
[334397952,1723029083842,-500.0,0.0003452,14]
[334397953,1723029083851,-500.0,0.0003452,14]
[334397954,1723029083861,-500.0,0.0003452,14]
[334397955,1723029083870,-641.8,0.0003452,14]
[334397956,1723029083879,-500.0,0.0003452,14]
[334397957,1723029083888,-663.8,0.0003452,14]
[334397958,1723029083897,-500.0,0.0003452,14]
[334397959,1723029083907,-500.0,0.0003452,14]
[334397960,1723029083917,-500.0,0.0003452,14]
[334397961,1723029083926,-500.0,0.0003452,14]
[334397962,1723029083935,-500.0,0.0003452,14]
[334397963,1723029083944,-500.0,0.0003452,14]
[334397964,1723029083954,-500.0,0.0003452,14]
[334397965,1723029083963,-610.03,0.0003452,14]
[334397966,1723029083972,-500.0,0.0003452,14]
[334397967,1723029083985,-529.45062977,0.0003452,14]
[334397968,1723029083995,-500.0,0.0003452,14]
[334397969,1723029084011,-1049.44,0.0003452,14]
[334397970,1723029084021,-658.92,0.0003452,14]
[334397971,1723029084032,-634.91,0.0003452,14]
[334397972,1723029084043,-500.0,0.0003452,14]
[334397973,1723029084054,-618.32,0.0003452,14]
[334397974,1723029084065,-841.16,0.0003452,14]
[334397975,1723029084077,-500.0,0.0003452,14]
[334397976,1723029084089,-543.25,0.0003452,14]
[334397977,1723029084101,-508.16,0.0003452,14]
[334397978,1723029084111,-2103.08,0.0003452,14]
[334397979,1723029084123,-500.0,0.0003452,14]
[334397980,1723029084134,-500.0,0.0003452,14]
[334397981,1723029084145,-290.55182006,0.0003452,14]
[334397982,1723029084155,-1135.85,0.0003452,14]
[334397983,1723029084165,-500.0,0.0003452,14]
[334397984,1723029084176,-500.0,0.0003452,14]
[334397985,1723029084187,-726.44,0.0003452,14]
[334397986,1723029084199,-606.85,0.0003452,14]
[334397987,1723029084210,-665.91,0.0003452,14]
[334397988,1723029084220,-782.36,0.0003452,14]
[334397989,1723029084230,-500.0,0.0003452,14]
[334397990,1723029084241,-653.76,0.0003452,14]
[334397991,1723029084251,-500.0,0.0003452,14]
[334397992,1723029084262,-500.0,0.0003452,14]
[334397993,1723029084272,-572.65,0.0003452,14]
[334397994,1723029084283,-552.06,0.0003452,14]
[334397995,1723029084294,-2180.22,0.0003452,14]
[334397996,1723029084304,-723.92,0.0003452,14]
[334397997,1723029084315,-531.95,0.0003452,14]
[334397998,1723029084326,-500.0,0.0003452,14]
[334397999,1723029084338,-738.14,0.0003452,14]
[334398000,1723029084349,-500.0,0.0003452,14]
[334398001,1723029084359,-500.0,0.0003452,14]
[334398002,1723029084368,-500.0,0.0003452,14]
[334398003,1723029084378,-202.7889638,0.0003452,14]
[334398004,1723029084389,-500.0,0.0003452,14]
[334398005,1723029084399,-500.0,0.0003452,14]
[334398006,1723029084409,-500.0,0.0003452,14]
[334398007,1723029084420,-561.59,0.0003452,14]
[334398008,1723029084430,-500.0,0.0003452,14]
[334398009,1723029084442,-526.38,0.0003452,14]
[334398010,1723029084453,-500.0,0.0003452,14]
[334398011,1723029084464,-655.78,0.0003452,14]
[334398012,1723029084473,-500.0,0.0003452,14]
[334398013,1723029084484,-997.18,0.0003452,14]
[334398014,1723029084494,-1854.37,0.0003452,14]
[334398015,1723029084504,-500.0,0.0003452,14]
[334398016,1723029084517,-200.0,0.0003452,7]
[334398017,1723029084528,-1754.86,0.0003452,14]
[334398018,1723029084540,-565.16542148,0.0003452,14]
[334398019,1723029084551,-500.0,0.0003452,14]
[334398020,1723029084562,-637.98,0.0003452,14]
[334398021,1723029084574,-210.87322304,0.0003452,14]
[334398022,1723029084584,-2280.75,0.0003452,14]
[334398023,1723029084595,-524.01,0.0003452,14]
[334398024,1723029084606,-500.0,0.0003452,14]
[334398025,1723029084616,-500.0,0.0003452,14]
[334398026,1723029084626,-500.0,0.0003452,14]
[334398027,1723029084636,-500.0,0.0003452,14]
[334398028,1723029084648,-528.8,0.0003452,14]
[334398029,1723029084658,-500.0,0.0003452,14]
[334398030,1723029084670,-1498.25,0.0003452,14]
[334398031,1723029084681,-693.96,0.0003452,14]
[334398032,1723029084692,-500.0,0.0003452,14]
[334398033,1723029084701,-500.0,0.0003452,14]
[334398034,1723029084711,-627.54,0.0003452,14]
[334398035,1723029084721,-562.85933801,0.0003452,14]
[334398036,1723029084730,-3342.3,0.0003452,14]
[334398037,1723029084740,-531.99,0.0003452,14]
[334398038,1723029084749,-500.0,0.0003452,14]
[334398039,1723029084759,-1236.8,0.0003452,14]
[334398040,1723029084768,-500.0,0.0003452,14]
[334398041,1723029084778,-728.37,0.0003452,14]
[334398042,1723029084788,-1161.27,0.0003452,14]
[334398043,1723029084798,-500.0,0.0003452,14]
[334398044,1723029084809,-3031.19,0.0003452,14]
[334398045,1723029084822,-938.86,0.0003452,14]
[334398046,1723029084833,-500.0,0.0003452,14]
[334398047,1723029084843,-500.0,0.0003452,14]
[334398048,1723029084855,-535.56029866,0.0003452,14]
[334398049,1723029084866,-1919.23,0.0003452,14]
[334398050,1723029084877,-1225.39,0.0003452,14]
[334398051,1723029084887,-884.22,0.0003452,14]
[334398052,1723029084898,-1075.22,0.0003452,14]
[334398053,1723029084908,-500.0,0.0003452,14]
[334398054,1723029084918,-500.0,0.0003452,14]
[334398055,1723029084929,-799.55,0.0003452,14]
[334398056,1723029084940,-665.15,0.0003452,14]
[334398057,1723029084950,-578.83,0.0003452,14]
[334398058,1723029084961,-500.0,0.0003452,14]
[334398059,1723029084972,-500.0,0.0003452,14]
[334398060,1723029084983,-500.0,0.0003452,14]
[334398061,1723029084997,-1407.14,0.0003452,14]
[334398062,1723029085008,-538.06,0.0003452,14]
[334398063,1723029085018,-500.0,0.0003452,14]
[334398064,1723029085029,-1237.71,0.0003452,14]
[334398065,1723029085041,-3398.02,0.0003452,14]
[334398066,1723029085050,-2584.23,0.0003452,14]
[334398067,1723029085060,-798.6,0.0003452,14]
[334398068,1723029085070,-604.27,0.0003452,14]
[334398069,1723029085083,-500.0,0.0003452,14]
[334398070,1723029085092,-500.0,0.0003452,14]
[334398071,1723029085103,-516.93866659,0.0003452,14]
[334398072,1723029085113,-500.0,0.0003452,2]
[334398073,1723029085123,-500.0,0.0003452,14]
[334398074,1723029085132,-500.0,0.0003452,14]
[334398075,1723029085142,-500.0,0.0003452,14]
[334398076,1723029085153,-1456.08,0.0003452,14]
[334398077,1723029085162,-968.66,0.0003452,14]
[334398078,1723029085172,-500.0,0.0003452,14]
[334398079,1723029085181,-1104.57,0.0003452,14]
[334398080,1723029085191,-785.13,0.0003452,14]
[334398081,1723029085200,-1000.35,0.0003452,14]
[334398082,1723029085210,-678.62,0.0003452,14]